fUSD/lending_fUSD_20260524
["ID","MTS","AMOUNT","RATE_DAILY","PERIOD"]
[422871966,1779556240000,-13840.01484842,0.00014784,2]
[422871968,1779556240000,-460.28463046,0.0001479,2]
[422871955,1779556240000,-395.32133159,0.000147,2]
[422871972,1779556240000,-1500000.0,0.000148,2]
[422871997,1779556240000,-367.24451,0.0001485,2]
[422871970,1779556240000,-150.0,0.00014795,2]
[422871938,1779556240000,-163.0,0.0001468,2]
[422871991,1779556240000,-834.9830784,0.00014847,2]
[422871987,1779556240000,-485328.6749792,0.00014847,2]
[422871989,1779556240000,-7980.230729,0.00014847,2]
[422871995,1779556240000,-65696.1198858,0.00014847,2]
[422871982,1779556240000,-216636.1681896,0.00014847,2]
[422871980,1779556240000,-579.97703457,0.00014846,5]
[422871976,1779556240000,-6695.01879164,0.00014809,2]
[422871978,1779556240000,-496.14,0.00014823,2]
[422871973,1779556240000,-900.0,0.000148,5]
[422871985,1779556240000,-3868.8982186,0.00014847,2]
[422872137,1779556241000,-297.35364,0.00015068,2]
[422872140,1779556241000,-297.35364,0.00015068,2]
[422872138,1779556241000,-297.35364,0.00015068,2]
[422872139,1779556241000,-297.35364,0.00015068,2]
[422872136,1779556241000,-297.35364,0.00015068,2]
[422872125,1779556241000,-150.0,0.00015,2]
[422872133,1779556241000,-813.0,0.00015,2]
[422872131,1779556241000,-1340.0,0.00015,2]
[422872132,1779556241000,-501.0,0.00015,2]
[422872129,1779556241000,-308.0,0.00015,2]
[422872130,1779556241000,-1699.45289163,0.00015,2]
[422872135,1779556241000,-900.0,0.00015068,2]
[422872134,1779556241000,-250.0,0.00015014,2]
[422872178,1779556241000,-599.10241492,0.0001532,2]
[422872153,1779556241000,-297.35364,0.00015068,2]
[422872155,1779556241000,-297.35364,0.00015068,2]
[422872157,1779556241000,-209.07,0.000151,14]
[422872145,1779556241000,-297.35364,0.00015068,2]
[422872149,1779556241000,-297.35364,0.00015068,2]
[422872161,1779556241000,-200.0,0.0001515,2]
[422872165,1779556241000,-163.02,0.000152,14]
[422872166,1779556241000,-986.9,0.000152,2]
[422872151,1779556241000,-297.35364,0.00015068,2]
[422872147,1779556241000,-297.35364,0.00015068,2]
[422872163,1779556241000,-200.0,0.0001515,2]
[422872180,1779556241000,-478.7,0.00015342,2]
[422872127,1779556241000,-150.0,0.00015,2]
[422872141,1779556241000,-297.35364,0.00015068,2]
[422872126,1779556241000,-150.0,0.00015,2]
[422872097,1779556241000,-2774.0,0.00015,2]
[422872118,1779556241000,-150.0,0.00015,2]
[422872063,1779556241000,-25000.0,0.00014999,3]
[422872067,1779556241000,-4760833.14278166,0.00015,2]
[422872069,1779556241000,-2508.24707003,0.00015,14]
[422872065,1779556241000,-796.0,0.00015,5]
[422872071,1779556241000,-1023.16215815,0.00015,2]
[422872075,1779556241000,-409.54103893,0.00015,2]
[422872073,1779556241000,-361.85764914,0.00015,2]
[422872077,1779556241000,-3533432.31974184,0.00015,2]
[422872061,1779556241000,-25000.0,0.0001499,3]
[422872079,1779556241000,-2361.25707855,0.00015,2]
[422872085,1779556241000,-1350.61324175,0.00015,2]
[422872083,1779556241000,-1837.0,0.00015,2]
[422872090,1779556241000,-233.12534026,0.00015,2]
[422872081,1779556241000,-196.94767127,0.00015,2]
[422872114,1779556241000,-2169.86650183,0.00015,2]
[422872092,1779556241000,-154.0,0.00015,2]
[422872088,1779556241000,-200.0,0.00015,2]
[422872099,1779556241000,-1000.0,0.00015,2]
[422872182,1779556241000,-478.7,0.00015342,2]
[422872087,1779556241000,-200.0,0.00015,2]
[422872101,1779556241000,-2777.72719594,0.00015,2]
[422872103,1779556241000,-2777.72719594,0.00015,2]
[422872105,1779556241000,-367.24451,0.00015,2]
[422872107,1779556241000,-367.24452,0.00015,2]
[422872110,1779556241000,-367.24451,0.00015,2]
[422872112,1779556241000,-315.0,0.00015,2]
[422872116,1779556241000,-150.0,0.00015,2]
[422872120,1779556241000,-150.0,0.00015,2]
[422872123,1779556241000,-150.0,0.00015,2]
[422872128,1779556241000,-246.69,0.00015,2]
[422872095,1779556241000,-156.83822054,0.00015,2]
[422872167,1779556241000,-2361.25707855,0.000152,2]
[422872159,1779556241000,-352.76895964,0.00015124,2]
[422872169,1779556241000,-5344.0,0.00015231,2]
[422872260,1779556241000,-1200.0,0.00016096,2]
[422872258,1779556241000,-480.70188401,0.00016096,2]
[422872246,1779556241000,-150.0,0.00016,2]
[422872265,1779556241000,-200.89459053,0.000161,7]
[422872250,1779556241000,-680.78916923,0.00016,2]
[422872252,1779556241000,-200.0,0.00016,2]
[422872248,1779556241000,-215.31523495,0.00016,3]
[422872262,1779556241000,-500.0,0.00016096,2]
[422872254,1779556241000,-300.0,0.00016,2]
[422872256,1779556241000,-4512.0,0.00016023,2]
[422872271,1779556241000,-1650.0,0.0001611,15]
[422872269,1779556241000,-680.78916923,0.000161,2]
[422872267,1779556241000,-2361.25707855,0.000161,2]
[422872244,1779556241000,-150.0,0.00016,2]
[422872273,1779556241000,-9999.99,0.00016116,2]
[422872277,1779556241000,-282.0,0.00016158,2]
[422872286,1779556241000,-2361.25707855,0.000162,2]
[422872281,1779556241000,-287.0,0.00016163,2]
[422872288,1779556241000,-680.78916923,0.000162,2]
[422872285,1779556241000,-244.0,0.00016163,2]
[422872283,1779556241000,-150.0,0.00016163,2]
[422872279,1779556241000,-2000.0,0.00016158,2]
[422872290,1779556241000,-158.7193162,0.0001622,2]
[422872292,1779556241000,-350.0,0.00016306,2]
[422872184,1779556241000,-478.78,0.00015343,2]
[422872296,1779556241000,-350.0,0.00016355,3]
[422872299,1779556241000,-2361.25707855,0.000164,2]
[422872301,1779556241000,-1837.0,0.000164,2]
[422872275,1779556241000,-1040.66,0.0001615,2]
[422872242,1779556241000,-300.0,0.00016,2]
[422872294,1779556241000,-200.0,0.0001634,2]
[422872238,1779556241000,-478.79,0.00015935,2]
[422872240,1779556241000,-2500.0,0.00016,2]
[422872172,1779556241000,-2361.25707855,0.000153,2]
[422872171,1779556241000,-1517.64,0.000153,2]
[422872176,1779556241000,-200.0,0.00015301,2]
[422872189,1779556241000,-350.0,0.0001537,3]
[422872174,1779556241000,-200.0,0.00015301,2]
[422872190,1779556241000,-459.47,0.000154,14]
[422872201,1779556241000,-10000.0,0.00015463,7]
[422872199,1779556241000,-200.0,0.00015455,2]
[422872196,1779556241000,-200.0,0.00015455,2]
[422872194,1779556241000,-170.3,0.00015436,2]
[422872204,1779556241000,-1762.61,0.00015464,2]
[422872214,1779556241000,-2361.25707855,0.000155,2]
[422872203,1779556241000,-4230.81,0.00015464,2]
[422872210,1779556241000,-155.0,0.00015476,2]
[422872186,1779556241000,-2658.0,0.00015364,2]
[422872207,1779556241000,-86119.95,0.00015464,2]
[422872193,1779556241000,-437.5283517,0.0001542,2]
[422872224,1779556241000,-478.78,0.00015638,2]
[422872231,1779556241000,-2271.20539281,0.00015807,2]
[422872235,1779556241000,-257.33,0.00015898,2]
[422872227,1779556241000,-152.0,0.00015702,2]
[422872233,1779556241000,-599.10241492,0.00015814,2]
[422872237,1779556241000,-2361.25707855,0.000159,2]
[422872223,1779556241000,-200.0,0.00015609,2]
[422872209,1779556241000,-243.0,0.00015476,2]
[422872220,1779556241000,-200.0,0.00015609,2]
[422872229,1779556241000,-2361.25707855,0.000158,2]
[422872217,1779556241000,-6453.0,0.00015571,2]
[422872219,1779556241000,-2361.25707855,0.000156,2]
[422872212,1779556241000,-441.0,0.00015476,2]
[422872374,1779556242000,-243.0,0.00016476,2]
[422872363,1779556242000,-2925.595349,0.00016438,2]
[422872365,1779556242000,-900.0,0.00016438,2]
[422872364,1779556242000,-2925.595349,0.00016438,2]
[422872362,1779556242000,-2925.595349,0.00016438,2]
[422872368,1779556242000,-151.0,0.00016438,2]
[422872371,1779556242000,-500.0,0.00016438,2]
[422872370,1779556242000,-159.803587,0.00016438,2]
[422872372,1779556242000,-500.0,0.00016438,2]
[422872369,1779556242000,-151.0,0.00016438,2]
[422872367,1779556242000,-151.0,0.00016438,2]
[422872376,1779556242000,-441.0,0.00016476,2]
[422872377,1779556242000,-6612.90032977,0.000165,2]
[422872380,1779556242000,-158.7193162,0.00016558,2]
[422872375,1779556242000,-155.0,0.00016476,2]
[422872381,1779556242000,-597.49149381,0.00016564,2]
[422872366,1779556242000,-151.0,0.00016438,2]
[422872378,1779556242000,-13058.97772215,0.000165,2]
[422872373,1779556242000,-500.0,0.00016438,2]
[422872379,1779556242000,-1000.0,0.000165,2]
[422872382,1779556242000,-2000.0,0.00016624,2]
[422872383,1779556242000,-2000.0,0.00016624,2]
[422872386,1779556242000,-2000.0,0.00016624,2]
[422872387,1779556242000,-1921.0,0.00016624,2]
[422872384,1779556242000,-2000.0,0.00016624,2]
[422872361,1779556242000,-2925.595349,0.00016438,2]
[422872344,1779556242000,-428.967527,0.00016438,2]
[422872359,1779556242000,-2925.595349,0.00016438,2]
[422872396,1779556242000,-650.0,0.00016625,2]
[422872309,1779556242000,-300.0,0.00016438,3]
[422872311,1779556242000,-300.0,0.00016438,3]
[422872303,1779556242000,-3145.9,0.00016438,2]
[422872307,1779556242000,-300.0,0.00016438,3]
[422872305,1779556242000,-977.29367641,0.00016438,2]
[422872313,1779556242000,-300.0,0.00016438,3]
[422872315,1779556242000,-300.0,0.00016438,3]
[422872317,1779556242000,-428.967527,0.00016438,2]
[422872321,1779556242000,-428.967527,0.00016438,2]
[422872319,1779556242000,-428.967527,0.00016438,2]
[422872348,1779556242000,-2925.595349,0.00016438,2]
[422872323,1779556242000,-428.967527,0.00016438,2]
[422872335,1779556242000,-428.967527,0.00016438,2]
[422872336,1779556242000,-428.967527,0.00016438,2]
[422872332,1779556242000,-428.967527,0.00016438,2]
[422872333,1779556242000,-428.967527,0.00016438,2]
[422872341,1779556242000,-428.967527,0.00016438,2]
[422872355,1779556242000,-2925.595349,0.00016438,2]
[422872351,1779556242000,-2925.595349,0.00016438,2]
[422872353,1779556242000,-2925.595349,0.00016438,2]
[422872358,1779556242000,-2925.595349,0.00016438,2]
[422872360,1779556242000,-2925.595349,0.00016438,2]
[422872346,1779556242000,-2925.595349,0.00016438,2]
[422872339,1779556242000,-428.967527,0.00016438,2]
[422872337,1779556242000,-428.967527,0.00016438,2]
[422872388,1779556242000,-1450.0,0.00016624,2]
[422872385,1779556242000,-2000.0,0.00016624,2]
[422872421,1779556242000,-3114.4,0.000169,2]
[422872420,1779556242000,-158.7193162,0.00016896,2]
[422872422,1779556242000,-437.5283517,0.00016962,2]
[422872424,1779556242000,-2500.0,0.00017,2]
[422872428,1779556242000,-228.0,0.00017148,2]
[422872426,1779556242000,-159.01189811,0.000171,2]
[422872425,1779556242000,-215.31523495,0.00017,7]
[422872423,1779556242000,-6321.0,0.00016987,2]
[422872430,1779556242000,-683.0,0.00017148,2]
[422872427,1779556242000,-3515.0,0.00017129,2]
[422872429,1779556242000,-898.0,0.00017148,2]
[422872414,1779556242000,-2000.0,0.00016744,2]
[422872432,1779556242000,-170.3,0.00017151,2]
[422872442,1779556242000,-1355.0,0.00017383,2]
[422872431,1779556242000,-2724.0,0.00017148,2]
[422872438,1779556242000,-150.0,0.00017383,2]
[422872437,1779556242000,-150.0,0.00017383,2]
[422872435,1779556242000,-150.0,0.00017383,2]
[422872433,1779556242000,-500.0,0.00017184,14]
[422872436,1779556242000,-150.0,0.00017383,2]
[422872440,1779556242000,-150.0,0.00017383,2]
[422872441,1779556242000,-3546.0,0.00017383,2]
[422872439,1779556242000,-150.0,0.00017383,2]
[422872392,1779556242000,-650.0,0.00016625,2]
[422872443,1779556242000,-625.0,0.00017383,2]
[422872418,1779556242000,-2000.0,0.00016744,2]
[422872434,1779556242000,-257.33,0.00017344,2]
[422872416,1779556242000,-2000.0,0.00016744,2]
[422872413,1779556242000,-2000.0,0.00016744,2]
[422872389,1779556242000,-1450.0,0.00016624,2]
[422872391,1779556242000,-650.0,0.00016625,2]
[422872394,1779556242000,-650.0,0.00016625,2]
[422872390,1779556242000,-1285.0,0.00016624,2]
[422872395,1779556242000,-650.0,0.00016625,2]
[422872398,1779556242000,-650.0,0.00016625,2]
[422872397,1779556242000,-650.0,0.00016625,2]
[422872399,1779556242000,-650.0,0.00016625,2]
[422872400,1779556242000,-370.0,0.00016625,2]
[422872401,1779556242000,-597.49149381,0.00016693,2]
[422872407,1779556242000,-2000.0,0.00016744,2]
[422872393,1779556242000,-650.0,0.00016625,2]
[422872402,1779556242000,-597.49149381,0.00016699,2]
[422872405,1779556242000,-2000.0,0.00016744,2]
[422872411,1779556242000,-2000.0,0.00016744,2]
[422872412,1779556242000,-2000.0,0.00016744,2]
[422872410,1779556242000,-2000.0,0.00016744,2]
[422872408,1779556242000,-2000.0,0.00016744,2]
[422872415,1779556242000,-2000.0,0.00016744,2]
[422872409,1779556242000,-2000.0,0.00016744,2]
[422872406,1779556242000,-2000.0,0.00016744,2]
[422872404,1779556242000,-167.16,0.00016712,2]
[422872403,1779556242000,-152.0,0.00016702,2]
[422872419,1779556242000,-656.0,0.00016744,2]
[422872417,1779556242000,-2000.0,0.00016744,2]
[422872481,1779556243000,-200.0,0.00018,14]
[422872472,1779556243000,-1238.75392083,0.0001789,2]
[422872475,1779556243000,-6878.36721469,0.000179,2]
[422872470,1779556243000,-162.53161286,0.00017878,2]
[422872482,1779556243000,-1497.57234498,0.00018,2]
[422872473,1779556243000,-6878.36721469,0.000179,2]
[422872478,1779556243000,-110816.57341083,0.00018,2]
[422872474,1779556243000,-6878.36721469,0.000179,2]
[422872477,1779556243000,-6878.36721469,0.000179,2]
[422872480,1779556243000,-2500.0,0.00018,2]
[422872483,1779556243000,-1111.14575214,0.00018,2]
[422872494,1779556243000,-297.35364,0.00018,2]
[422872500,1779556243000,-350.0,0.00018,2]
[422872502,1779556243000,-478.7,0.00018015,2]
[422872496,1779556243000,-297.35364,0.00018,2]
[422872498,1779556243000,-200.0,0.00018,2]
[422872503,1779556243000,-1109.0,0.0001805,2]
[422872489,1779556243000,-2925.595349,0.00018,2]
[422872471,1779556243000,-1639.96760242,0.00017878,2]
[422872485,1779556243000,-2925.595349,0.00018,2]
[422872479,1779556243000,-1206.9889289,0.00018,2]
[422872465,1779556243000,-1837.0,0.000178,2]
[422872450,1779556243000,-169.48,0.00017435,2]
[422872463,1779556243000,-286.54,0.000178,2]
[422872492,1779556243000,-297.35364,0.00018,2]
[422872444,1779556243000,-927.0,0.00017383,2]
[422872446,1779556243000,-150.0,0.00017383,2]
[422872447,1779556243000,-1224.0,0.00017383,2]
[422872445,1779556243000,-1271.0,0.00017383,2]
[422872448,1779556243000,-3635.0,0.00017383,2]
[422872456,1779556243000,-441.0,0.00017476,2]
[422872454,1779556243000,-243.0,0.00017476,2]
[422872452,1779556243000,-1200.0,0.00017466,7]
[422872449,1779556243000,-6060.0,0.00017383,2]
[422872451,1779556243000,-7654.0,0.00017452,2]
[422872455,1779556243000,-155.0,0.00017476,2]
[422872453,1779556243000,-500.0,0.00017466,7]
[422872458,1779556243000,-2000.0,0.00017627,2]
[422872468,1779556243000,-150.0,0.00017861,7]
[422872457,1779556243000,-169.898,0.000175,2]
[422872460,1779556243000,-403.0,0.000177,5]
[422872469,1779556243000,-150.0,0.00017871,7]
[422872459,1779556243000,-792.68419263,0.000177,2]
[422872466,1779556243000,-750.0,0.0001784,2]
[422872467,1779556243000,-300.0,0.0001784,7]
[422872461,1779556243000,-152.0,0.00017702,2]
[422872490,1779556243000,-151.0,0.00018,2]
[422872491,1779556243000,-297.35364,0.00018,2]
[422872487,1779556243000,-2925.595349,0.00018,2]
[422872532,1779556243000,-437.5283517,0.00018504,2]
[422872530,1779556243000,-1497.57234498,0.000185,2]
[422872529,1779556243000,-441.0,0.00018476,2]
[422872531,1779556243000,-1111.14575214,0.000185,2]
[422872533,1779556243000,-1200.0,0.00018562,7]
[422872535,1779556243000,-1497.57234498,0.000187,2]
[422872541,1779556243000,-187.78006524,0.00018749,2]
[422872536,1779556243000,-1111.14575214,0.000187,2]
[422872537,1779556243000,-152.0,0.00018702,2]
[422872538,1779556243000,-151.0,0.00018749,2]
[422872540,1779556243000,-151.0,0.00018749,2]
[422872534,1779556243000,-500.0,0.00018562,7]
[422872546,1779556243000,-200.0,0.00018749,2]
[422872545,1779556243000,-151.0,0.00018749,2]
[422872543,1779556243000,-1280.88388877,0.00018749,2]
[422872544,1779556243000,-373.07297731,0.00018749,2]
[422872548,1779556243000,-174.61919141,0.00018749,2]
[422872542,1779556243000,-151.0,0.00018749,2]
[422872547,1779556243000,-743.50770149,0.00018749,2]
[422872549,1779556243000,-206.46373247,0.00018749,2]
[422872488,1779556243000,-2925.595349,0.00018,2]
[422872528,1779556243000,-155.0,0.00018476,2]
[422872527,1779556243000,-243.0,0.00018476,2]
[422872539,1779556243000,-500.0,0.00018749,2]
[422872525,1779556243000,-3145.9,0.0001841,2]
[422872526,1779556243000,-500.0,0.00018466,2]
[422872504,1779556243000,-585.0,0.0001805,2]
[422872505,1779556243000,-428.967527,0.0001805,2]
[422872511,1779556243000,-150.0,0.00018087,2]
[422872506,1779556243000,-428.967527,0.0001805,2]
[422872508,1779556243000,-428.967527,0.0001805,2]
[422872507,1779556243000,-428.967527,0.0001805,2]
[422872517,1779556243000,-1497.57234498,0.000182,2]
[422872513,1779556243000,-228.0,0.00018148,2]
[422872512,1779556243000,-1801.17513169,0.000181,2]
[422872510,1779556243000,-150.0,0.00018082,2]
[422872519,1779556243000,-395.32133157,0.000183,2]
[422872516,1779556243000,-2724.0,0.00018148,2]
[422872515,1779556243000,-683.0,0.00018148,2]
[422872518,1779556243000,-1111.14575214,0.000182,2]
[422872520,1779556243000,-30320.6,0.00018356,2]
[422872523,1779556243000,-1111.14575214,0.000184,2]
[422872521,1779556243000,-8745.0,0.00018365,2]
[422872524,1779556243000,-318.02379621,0.000184,2]
[422872522,1779556243000,-1497.57234498,0.000184,2]
[422872514,1779556243000,-898.0,0.00018148,2]
[422872627,1779556244000,-152.0,0.00018749,2]
[422872642,1779556244000,-151.0,0.00018749,2]
[422872637,1779556244000,-151.0,0.00018749,2]
[422872640,1779556244000,-500.0,0.00018749,2]
[422872606,1779556244000,-152.0,0.00018749,2]
[422872624,1779556244000,-151.0,0.00018749,2]
[422872622,1779556244000,-500.0,0.00018749,2]
[422872609,1779556244000,-187.78006524,0.00018749,2]
[422872630,1779556244000,-151.0,0.00018749,2]
[422872635,1779556244000,-152.0,0.00018749,2]
[422872632,1779556244000,-151.0,0.00018749,2]
[422872663,1779556244000,-500.0,0.00018749,2]
[422872648,1779556244000,-151.0,0.00018749,2]
[422872651,1779556244000,-500.0,0.00018749,2]
[422872652,1779556244000,-151.0,0.00018749,2]
[422872657,1779556244000,-152.0,0.00018749,2]
[422872659,1779556244000,-151.0,0.00018749,2]
[422872661,1779556244000,-151.0,0.00018749,2]
[422872670,1779556244000,-151.0,0.00018749,2]
[422872673,1779556244000,-152.0,0.00018749,2]
[422872671,1779556244000,-500.0,0.00018749,2]
[422872604,1779556244000,-151.0,0.00018749,2]
[422872645,1779556244000,-152.0,0.00018749,2]
[422872619,1779556244000,-187.78006524,0.00018749,2]
[422872564,1779556244000,-279.9045709,0.00018749,2]
[422872614,1779556244000,-152.0,0.00018749,2]
[422872666,1779556244000,-152.0,0.00018749,2]
[422872551,1779556244000,-200.0,0.00018749,2]
[422872568,1779556244000,-1000.0,0.00018749,2]
[422872566,1779556244000,-151.0,0.00018749,2]
[422872570,1779556244000,-1865.36488656,0.00018749,2]
[422872554,1779556244000,-151.0,0.00018749,2]
[422872556,1779556244000,-3730.72977313,0.00018749,2]
[422872559,1779556244000,-621.78829552,0.00018749,2]
[422872561,1779556244000,-8565.75555911,0.00018749,2]
[422872573,1779556244000,-152.0,0.00018749,2]
[422872617,1779556244000,-151.0,0.00018749,2]
[422872575,1779556244000,-1000.0,0.00018749,2]
[422872578,1779556244000,-151.0,0.00018749,2]
[422872585,1779556244000,-484.94425873,0.00018749,2]
[422872583,1779556244000,-176.44993098,0.00018749,2]
[422872588,1779556244000,-187.78006524,0.00018749,2]
[422872593,1779556244000,-151.0,0.00018749,2]
[422872596,1779556244000,-646.65982734,0.00018749,2]
[422872591,1779556244000,-152.0,0.00018749,2]
[422872598,1779556244000,-152.0,0.00018749,2]
[422872611,1779556244000,-151.0,0.00018749,2]
[422872601,1779556244000,-151.0,0.00018749,2]
[422872580,1779556244000,-578.20924308,0.00018749,2]
[422872677,1779556244000,-151.0,0.00018749,2]
[422872733,1779556244000,-2000.0,0.00018914,2]
[422872680,1779556244000,-500.0,0.00018749,2]
[422872712,1779556244000,-500.0,0.00018749,2]
[422872720,1779556244000,-151.0,0.00018804,2]
[422872730,1779556244000,-2000.0,0.00018914,2]
[422872725,1779556244000,-170.3,0.00018867,2]
[422872722,1779556244000,-262.42362776,0.00018859,2]
[422872719,1779556244000,-8882.6885148,0.00018804,2]
[422872721,1779556244000,-500.0,0.00018859,2]
[422872723,1779556244000,-9211.34798984,0.00018859,2]
[422872726,1779556244000,-2000.0,0.00018914,2]
[422872724,1779556244000,-151.0,0.00018859,2]
[422872709,1779556244000,-151.0,0.00018749,2]
[422872729,1779556244000,-2000.0,0.00018914,2]
[422872731,1779556244000,-2000.0,0.00018914,2]
[422872734,1779556244000,-2000.0,0.00018914,2]
[422872735,1779556244000,-2000.0,0.00018914,2]
[422872739,1779556244000,-2000.0,0.00018914,2]
[422872737,1779556244000,-2000.0,0.00018914,2]
[422872732,1779556244000,-2000.0,0.00018914,2]
[422872740,1779556244000,-2000.0,0.00018914,2]
[422872738,1779556244000,-2000.0,0.00018914,2]
[422872668,1779556244000,-151.0,0.00018749,2]
[422872736,1779556244000,-2000.0,0.00018914,2]
[422872727,1779556244000,-2000.0,0.00018914,2]
[422872718,1779556244000,-386.87667747,0.00018804,2]
[422872728,1779556244000,-2000.0,0.00018914,2]
[422872710,1779556244000,-500.0,0.00018749,2]
[422872682,1779556244000,-152.0,0.00018749,2]
[422872716,1779556244000,-500.0,0.00018749,2]
[422872684,1779556244000,-151.0,0.00018749,2]
[422872686,1779556244000,-151.0,0.00018749,2]
[422872695,1779556244000,-151.0,0.00018749,2]
[422872689,1779556244000,-500.0,0.00018749,2]
[422872693,1779556244000,-151.0,0.00018749,2]
[422872697,1779556244000,-500.0,0.00018749,2]
[422872701,1779556244000,-151.0,0.00018749,2]
[422872676,1779556244000,-151.0,0.00018749,2]
[422872699,1779556244000,-152.0,0.00018749,2]
[422872690,1779556244000,-152.0,0.00018749,2]
[422872705,1779556244000,-151.0,0.00018749,2]
[422872703,1779556244000,-151.0,0.00018749,2]
[422872706,1779556244000,-151.0,0.00018749,2]
[422872708,1779556244000,-151.0,0.00018749,2]
[422872711,1779556244000,-151.0,0.00018749,2]
[422872713,1779556244000,-151.0,0.00018749,2]
[422872715,1779556244000,-500.0,0.00018749,2]
[422872707,1779556244000,-500.0,0.00018749,2]
[422872704,1779556244000,-500.0,0.00018749,2]
[422872717,1779556244000,-500.0,0.00018804,2]
[422872714,1779556244000,-328.35616187,0.00018749,2]
[422872784,1779556245000,-247.43723804,0.00019178,2]
[422872782,1779556245000,-230.09519341,0.00019178,2]
[422872770,1779556245000,-228.0,0.00019148,2]
[422872779,1779556245000,-206.33422798,0.00019178,2]
[422872772,1779556245000,-683.0,0.00019148,2]
[422872781,1779556245000,-221.88543241,0.00019178,2]
[422872778,1779556245000,-198.97225456,0.00019178,2]
[422872774,1779556245000,-250.0,0.00019178,2]
[422872775,1779556245000,-250.0,0.00019178,2]
[422872793,1779556245000,-696.937149,0.00019178,2]
[422872771,1779556245000,-898.0,0.00019148,2]
[422872773,1779556245000,-2724.0,0.00019148,2]
[422872785,1779556245000,-256.59241585,0.00019178,2]
[422872807,1779556245000,-696.937149,0.00019178,2]
[422872786,1779556245000,-266.08633524,0.00019178,2]
[422872789,1779556245000,-296.7282131,0.00019178,2]
[422872790,1779556245000,-307.70715698,0.00019178,2]
[422872794,1779556245000,-696.937149,0.00019178,2]
[422872791,1779556245000,-319.09232179,0.00019178,2]
[422872787,1779556245000,-275.93152964,0.00019178,2]
[422872792,1779556245000,-19908.75,0.00019178,2]
[422872788,1779556245000,-286.14099624,0.00019178,2]
[422872796,1779556245000,-696.937149,0.00019178,2]
[422872795,1779556245000,-696.937149,0.00019178,2]
[422872806,1779556245000,-696.937149,0.00019178,2]
[422872797,1779556245000,-696.937149,0.00019178,2]
[422872800,1779556245000,-696.937149,0.00019178,2]
[422872776,1779556245000,-250.0,0.00019178,2]
[422872783,1779556245000,-238.60871557,0.00019178,2]
[422872780,1779556245000,-213.96859442,0.00019178,2]
[422872746,1779556245000,-500.0,0.00018969,2]
[422872765,1779556245000,-550.0,0.00019118,2]
[422872799,1779556245000,-696.937149,0.00019178,2]
[422872741,1779556245000,-2000.0,0.00018914,2]
[422872742,1779556245000,-1963.0,0.00018914,2]
[422872743,1779556245000,-500.0,0.00018914,2]
[422872745,1779556245000,-151.0,0.00018914,2]
[422872756,1779556245000,-135731.54640471,0.00019,2]
[422872755,1779556245000,-194.0,0.00019,2]
[422872744,1779556245000,-9552.16786547,0.00018914,2]
[422872754,1779556245000,-3181.31961981,0.00019,2]
[422872750,1779556245000,-5233.78335547,0.00019,2]
[422872747,1779556245000,-9905.59807649,0.00018969,2]
[422872749,1779556245000,-593.35761011,0.0001897,2]
[422872753,1779556245000,-574.02501873,0.00019,2]
[422872777,1779556245000,-263.3307155,0.00019178,2]
[422872751,1779556245000,-2000.0,0.00019,2]
[422872748,1779556245000,-151.0,0.00018969,2]
[422872757,1779556245000,-364.1970986,0.0001901,7]